Cogmind - Beta 9.1 @@@ ROGUE MODE // 2019.11.01 @ 22:10:38 Player: MrPainting Result: Destroyed by G-34 Mercenary with Small Laser Performance ------------- Evolutions (0) 0 Regions Visited (1) 200 Robots Destroyed (18) 90 Value Destroyed (514) 514 Prototype IDs (0) 0 Alien Tech Used (0) 0 Bonus (0) 0 TOTAL SCORE: 804 Bonus ------- None Cogmind --------- Core Integrity 0/250 Matter 253/300 Energy 121/160 System Corruption 2% Temperature Cool (159) Location -10/Materials Parts ------- Power (1) Light Nuclear Core Propulsion (2) Aluminum Leg Aluminum Leg Utility (2) Large Storage Unit Propulsion Shielding Weapon (2) Assault Rifle Inventory (10) Hover Unit Hover Unit Flight Unit Improved Heat Sink Large Storage Unit Sensor Array Signal Interpreter ECM Suite Peak State ------------ Power Light Nuclear Core Propulsion Aluminum Leg Aluminum Leg Utility Large Storage Unit Propulsion Shielding Weapon Assault Rifle Inventory Hover Unit Hover Unit Flight Unit Improved Heat Sink Large Storage Unit Sensor Array Signal Interpreter ECM Suite [Rating: 9] Favorites ----------- Power Light Ion Engine Engine Light Ion Engine Power Core Light Nuclear Core Propulsion Light Treads Treads Light Treads Leg Aluminum Leg Hover Unit Hover Unit Utility Large Storage Unit Storage Large Storage Unit Processor Visual Processing Unit Protection Propulsion Shielding Weapon Assault Rifle Energy Gun Small Laser Ballistic Gun Assault Rifle Ballistic Cannon Light Cannon Build | -11 -10 ------- Run | Scr Mat Slots Evolved . | . . Power . | . . Propulsion . | . . Utility . | . . Weapon . | . . Parts Attached 26 | 5 21 Power 4 | 1 3 Engine 3 | 1 2 Core 1 | . 1 Reactor . | . . Propulsion 7 | 2 5 Treads 2 | 2 . Leg 4 | . 4 Wheel . | . . Hover 1 | . 1 Flight . | . . Utility 5 | . 5 Device . | . . Storage 2 | . 2 Processor 1 | . 1 Hackware . | . . Protection 2 | . 2 Artifact . | . . Weapon 10 | 2 8 Energy Gun 4 | . 4 Energy Cannon . | . . Ballistic Gun 5 | 2 3 Ballistic Cannon 1 | . 1 Launcher . | . . Special Weapon . | . . Impact Weapon . | . . Slashing Weapon . | . . Piercing Weapon . | . . Special Melee Weapon . | . . Unidentified Prototypes . | . . Parts Lost 9 | . 9 Power 2 | . 2 Propulsion 1 | . 1 Utility 1 | . 1 Weapon 5 | . 5 Highest Loss Streak 4 | . 4 Average Slot Usage (%) 96 | . 96 Engine 13 | . 13 Treads 14 | . 14 Leg 13 | . 13 Storage 13 | . 13 Protection 12 | . 12 Energy Gun 6 | . 6 Ballistic Gun 17 | . 17 Ballistic Cannon 3 | . 3 Naked Turns . | . . Heaviest Build 27 | 7 27 Greatest Support 40 | 40 40 Greatest Overweight (x) 1 | . 1 Average Overweight (x) . | . . Largest Inventory Capacity 10 | 4 10 Average Capacity 9 | 4 9 Most Carried 10 | 4 10 Average Carried 7 | 2 7 Final Capacity 10 | 4 10 Final Carried 8 | 4 8 Class Distribution -------------------- 89% | Mutant 10% | Scavenger-Mutant Dominant Class ---------------- Mutant | -10/Materials Resources | -11 -10 ----------- Run | Scr Mat Matter Collected 711 | 244 467 Remotely . | . . Salvage Created 657 | . 657 Parts 36 | . 36 Haulers Intercepted 1 | . 1 Recyclers Shooed 1 | . 1 Parts Field Recycled . | . . Retrieved Matter . | . . Parts Self-Destructed . | . . Prevented . | . . Kills | -11 -10 ------- Run | Scr Mat Combat Hostiles Destroyed 12 | . 12 Guns 9 | . 9 Cannons 3 | . 3 Classes Destroyed 5 | . 5 Worker 1 | . 1 Hauler 1 | . 1 Recycler 1 | . 1 Watcher 3 | . 3 Grunt 12 | . 12 Best Kill Streak 5 | . 5 Combat Bots Only 3 | . 3 Max Kills in Single Turn 1 | . 1 Gunslinging . | . . Exploded . | . . Melee . | . . Uniques/NPCs Destroyed . | . . Combat | -11 -10 -------- Run | Scr Mat Damage Taken 1450 | . 1450 Core 250 | . 250 Absorbed by Shields . | . . Core Remaining (%) 100 | 100 . Volleys Fired 73 | . 73 Largest 2 | . 2 Hottest 70 | . 70 Shots Fired 138 | . 138 Gun 112 | . 112 Cannon 26 | . 26 Launcher . | . . Special . | . . Kinetic 108 | . 108 Thermal 30 | . 30 Explosive . | . . Electromagnetic . | . . Robot Hit Streak 9 | . 9 Robot Miss Streak 5 | . 5 Penetration Max . | . . Secondary Targets . | . . Shots Hit Robots 90 | . 90 Core Hits 34 | . 34 Critical Hits 1 | . 1 Critical Kills . | . . Critical Parts Destroyed 1 | . 1 Melee Attacks . | . . Impact . | . . Slashing . | . . Piercing . | . . Sneak Attacks . | . . Combat Hostiles . | . . Follow-up Attacks . | . . Damage Inflicted 1190 | . 1190 Guns 936 | . 936 Cannons 252 | . 252 Explosions . | . . Melee . | . . Ramming 2 | . 2 Kinetic 1014 | . 1014 Thermal 174 | . 174 Explosive . | . . Electromagnetic . | . . Impact . | . . Slashing . | . . Piercing . | . . Highest Corruption 2 | . 2 Average Corruption 2 | . 2 Corruption Purged . | . . Effects 4 | . 4 Heat Flow Errors 2 | . 2 Data Loss (minor) 1 | . 1 Targeting Errors 1 | . 1 Overload Shots . | . . Overflow Damage 5 | . 5 Projectiles 5 | . 5 Explosions . | . . Melee . | . . Knockbacks 6 | . 6 Impact . | . . Kinetic 6 | . 6 Secondary . | . . Self-Inflicted Damage 1 | . 1 Shots . | . . Rammed 2 | . 2 Targets Rammed 2 | . 2 Kicked . | . . Crushed . | . . Highest Temperature 284 | . 284 Average Temperature 54 | . 54 Received Heat Transfer 813 | . 813 Siege Activations . | . . Robots Corrupted . | . . Combat Hostiles . | . . Parts Fried . | . . Impact Corruptions . | . . Robots Melted . | . . Combat Hostiles . | . . Parts Melted . | . . Heat Transferred 411 | . 411 Parts Sabotaged . | . . Parts Stolen . | . . Parts Stripped . | . . Power Chain Reactions . | . . Missiles Intercepted . | . . Alert | -11 -10 ------- Run | Scr Mat Peak Influence 195 | . 195 Average Influence 62 | . 68 Maximum Alert Level . | . . Low Security (%) 100 | . . Level 1 . | . . Level 2 . | . . Level 3 . | . . Level 4 . | . . Level 5 . | . . High Security . | . . Max Security . | . . Squads Dispatched 2 | . 2 Investigation 1 | . 1 Extermination . | . . Reinforcement 1 | . 1 Assault . | . . Garrison . | . . Intercept . | . . Construction Impeded . | . . Haulers Reinforced . | . . Stealth | -11 -10 --------- Run | Scr Mat Distress Signals 2 | . 2 Communications Jammed . | . . Distress Signals . | . . Times Spotted 21 | . 21 Peak Tracking Total 5 | . 5 Tactical Retreats . | . . Traps | -11 -10 ------- Run | Scr Mat Traps Triggered 1 | . 1 Indirectly . | . . Trap Hack Attempts . | . . Triggered . | . . Disarmed . | . . Reprogrammed . | . . Reused . | . . Traps Extracted . | . . Installed . | . . Triggered . | . . Machines | -11 -10 ---------- Run | Scr Mat Machines Disabled 1 | . 1 Max in Single Turn 1 | . 1 Machines Sabotaged . | . . Garrisons Compromised . | . . Overloaded Fab Kills . | . . Fab Network Shutdowns . | . . Hacking | -11 -10 --------- Run | Scr Mat Machines Accessed 1 | . 1 Terminals 1 | . 1 Fabricators . | . . Repair Stations . | . . Recycling Units . | . . Scanalyzers . | . . Garrison Access . | . . Total Hacks 3 | . 3 Successful 2 | . 2 Failed 1 | . 1 Catastrophic 1 | . 1 Database Lockouts . | . . Manual 2 | . 2 Terminals 3 | . 3 Fabricators . | . . Repair Stations . | . . Recycling Units . | . . Scanalyzers . | . . Garrison Access . | . . Terminal Hacks 1 | . 1 Terminal Index 1 | . 1 Fabricator Hacks . | . . Repair Station Hacks . | . . Recycling Unit Hacks . | . . Scanalyzer . | . . Garrison Access Hacks . | . . Unauthorized Hacks 3 | . 3 Terminals 1 | . 1 Botnet 1 | . 1 Fabricators . | . . Repair Stations . | . . Recycling Units . | . . Scanalyzers . | . . Garrison Access . | . . Data Cores Recovered . | . . Used . | . . Hacking Detections 1 | . 1 Full Trace Events . | . . Feedback Events . | . . Feedback Blocked . | . . Robot Schematics Acquired . | . . Robots Built . | . . Matter . | . . Time . | . . Total Robot Build Rating . | . . Part Schematics Acquired . | . . Parts Built . | . . Matter . | . . Time . | . . Total Part Build Rating . | . . Parts Repaired . | . . Time . | . . Parts Recycled . | . . Recycled Matter . | . . Retrieved Matter . | . . Retrieved Components . | . . Parts Scanalyzed . | . . Part Schematics Acquired . | . . Parts Damaged . | . . Bothacking | -11 -10 ------------ Run | Scr Mat Used RIF Installer . | . . Robots Hacked . | . . Non-combat . | . . Combat . | . . Robot Hacks Applied . | . . Relay Couplers Released . | . . Robots Rewired . | . . Allies Hacked . | . . Hacks Repelled . | . . Allies | -11 -10 -------- Run | Scr Mat Total Allies . | . . Largest Group . | . . Highest-Rated Group . | . . Highest-Rated Ally . | . . Total Orders . | . . Ally Attacks . | . . Total Damage . | . . Kills . | . . Allies Corrupted . | . . Allies Melted . | . . Intel | -11 -10 ------- Run | Scr Mat Robot Analysis Total . | . . Derelict Logs Recovered . | . . Drone Launches . | . . Drone Recoveries . | . . Exploration | -11 -10 ------------- Run | Scr Mat Turns Passed 1006 | 79 927 Spaces Moved 422 | 51 371 Core 14 | 14 . Treads 213 | 37 176 Legs 195 | . 195 Wheels . | . . Hover . | . . Flight . | . . Fastest Speed 50 | 50 120 Average Speed 151 | 129 153 Slowest Speed 180 | 160 180 Overloaded Moves . | . . Propulsion Burnouts . | . . Robots Hopped . | . . Cave-ins Triggered . | . . Exploration Rate (%) 36 | 4 69 Regions Visited 1 Branch Regions . Pre-discovered Areas . | . . Known Exits Taken . | . . Unknown Exits Taken 1 | 1 . Scrap Searched . | . . Spaces Dug . | . . Terrain Destroyed . | . . Melee . | . . Projectile . | . . AOE . | . . Actions | -11 -10 --------- Run | Scr Mat Total 647 | 63 584 Wait 94 | . 94 Move 421 | 50 371 Hop . | . . Pick Up 25 | 8 17 Fast Attach 4 | 1 3 Attach 11 | 4 7 Detach . | . . Swap 11 | . 11 Drop 6 | . 6 Fire 73 | . 73 Melee . | . . Ram . | . . Kick 1 | . 1 Crush 1 | . 1 Escape Stasis . | . . Rewire . | . . Trap . | . . Miscellaneous . | . . Route ------- -11/Scrapyard -10/Materials (discovered 2 exits: [*Mat] / [*Min]) History --------- Turn | Location | Event 11 | -11/Scrapyard | Discovered new exit (range 15) 80 | -11/Scrapyard | Entered Materials 257 | -10/Materials | Discovered new exit (range 16) 304 | -10/Materials | Build established: Mutant 549 | -10/Materials | Core integrity fell below 50% 591 | -10/Materials | Lost 4 parts (1p1n2w) 622 | -10/Materials | Discovered new exit (range 14) 695 | -10/Materials | Core integrity fell below 20% 1007 | -10/Materials | Destroyed by G-34 Mercenary with Small Laser Last Messages --------------- 00874_ Acquired 39 matter. 00880_ Acquired 20 matter. 00883_ Acquired Aluminum Leg. 00887_ Dropped Aluminum Leg. 00893_ K-01 Serf cleans the Material Compactor. 00901_ System corrupted: Heat flow error (+275). 00939_ K-01 Serf cleans the Terminal. 00945_ System corrupted: Component data lost. 00973_ K-01 Serf cleans the Purification Channel. 00984_ O-16 Technician: "IFF HANDSHAKE FAILED. SECURING TERMINAL." 00985_ ALERT: Hostiles spotted, dispatching reinforcements to Terminal M008. 00987_ System corrupted: Heat flow error (+278). 00988_ Sml. Laser destroyed. 00990_ K-01 Serf cleans the Purification Channel. 00990_ System corrupted: Assault Rifle targeting data glitched. 00992_ G-34 Mercenary destroyed. 00994_ K-01 Serf collects debris. 01003_ Ion Engine destroyed. 01007_ K-01 Serf collects debris. Map ----- +----------------------------------------------------+ | ??????????????????????????????????????????? | | ??????????????????????????????????????????? | | ??????????????????????????????????????????? | | ??????????????????????????????????????????? | | ??????????????????????????????????????????? | | ??????????????????????????????????#####???? | | ??????????????????????????????????# #???? | | ??????????????????????????????????# < #???? | | ??????????????????????????????????# #???? | | ??????????????????????????????????# #???? | | ???????????????????????############ #???? | | ???????????????????????# ^ ## #???? | | ???????????????????????# ## ##??? | | ???????????????????????# """"""" # #??? | | ???????#???????????????# """"""" # #??? | | ???????# ??????????????# """"""" + #??? | | ???????# ?????????????# """"""" # #??? | | ???????# ????????????# """"""" # #??? | | ??????## #?#????????????? ## ##??? | | ??????? ! ##/??################## #???? | | ???????? ??# #??????# ##### | | ?????????? ?# "T" #??????# | | ???????????? ?# """ ######## | | ?????????????#o # + | | ?????????????# ##/############### | | ?????????????# %@t #???????????### | | ?????????????# g #?????????????# | | ?????????????#[ k "#?????????????# | | ??????????!! " T#?????????????# | | ?????????#!! """ "#?????????????# "" | | ?????????#!! """ #?????????????# """ | | ?????????#!! """ +?????????????# """ | | ?????????#!! "" #?????????????# """ | | ?????????#!! ?""u #?????????????# "" | | ?????????##### ??" #?????????????# | | ?????????????" ???" #?????????????# | | ?????????????Y ??? #?????######### | | ?????????????"???? #?????# ## | | ??????????????????? #?????# ## | | ??????????????????? ?????# # | | ??????????????????? ?????# # | | ??????????????????? ??????#^^"Y" + "T" | | ????????????????????????????# """ # """ | | ????????????????????????????# # | | ????????????????????????????######## | | ????????????????????????????#[ # #### | | ????????????????????????????# + #??? | | ????????????????????????????# # #??? | | ????????????????????????????# # #??? | | ????????????????????????????# # #??? | +----------------------------------------------------+ Best States ------------- Heat Dissipation 25 Energy Generation 10 Energy Capacity 250 Matter Stores 294 Matter Capacity 300 Sight Range 18 Terrain Scan Density 10 Armor Coverage 150 Propulsion Shielding 33 Evasion (%) 50 Recoil Reduction 2 Item Schematics ----------------- None Robot Schematics ------------------ None Fabricated ------------ Nothing Alien Tech Used ----------------- None Achievements -------------- None Challenges ------------ None Game ------ Seed RocketCombatAnalyzer Manual? 0 Play Time 00:09:47 Cumulative 90.7 hours Start 2019.11.01 @ 22:01:53 End 2019.11.01 @ 22:10:38 Sessions 1 Manual Loads 0 Difficulty Rogue Special Mode None Game No. 144 Rogue 144 Adventurer 0 Explorer 0 Win Type - Total 0 Types 0/0/0/0/0/0/0 Lore% 30 Gallery% 44 Achievement% 32 Wizard Run 0 Options --------- ASCII 0 Keyboard 0 Movement Mouse Keybinds 0 Fullscreen 1 Font 18/SmallcapsGlow Map View 76x50 Tactical HUD 1 Map Filters NONE Filters NONE Steam 1 RUN: d7bd36e5-f28b-4ade-8a21-0be155c3f475